lending/lending_fUSD_20260306
["ID","MTS","AMOUNT","RATE_DAILY","PERIOD"]
[407809482,1772814728377,-1000.0,0.00024888,2]
[407809483,1772814728387,-308774.68441726,0.000249,2]
[407809484,1772814729351,-2712.48343693,0.000249,2]
[407809485,1772814729363,-197920.80001481,0.000249,2]
[407809486,1772814729373,-151.0,0.000249,2]
[407809487,1772814729383,-1000.0,0.00024935,2]
[407809488,1772814729393,-500.0,0.00024937,2]
[407809489,1772814729403,-532.32,0.00024937,2]
[407809490,1772814729413,-825.0,0.00024949,60]
[407809491,1772814729423,-7153.19144206,0.00025,2]
[407809492,1772814729434,-150.0,0.00025,10]
[407809493,1772814729445,-172.74325605,0.00025,3]
[407809494,1772814729456,-150.0,0.00025037,2]
[407809495,1772814729466,-350.0,0.00025042,2]
[407809496,1772814729476,-1135.69,0.00025049,30]
[407809497,1772814729488,-151.624906,0.00025049,2]
[407809498,1772814729498,-151.55655,0.00025049,2]
[407809499,1772814729508,-346.42,0.00025076,2]
[407809500,1772814729518,-4168.4100523,0.00025081,2]
[407809501,1772814729535,-1255.08996213,0.00025088,30]
[407809502,1772814729550,-700.0,0.00025088,2]
[407809503,1772814729560,-1000.0,0.00025147,2]
[407809504,1772814729571,-151.0,0.00025152,2]
[407809505,1772814729582,-1000.0,0.00025168,2]
[407809506,1772814729592,-39984.738,0.00025185,30]
[407809507,1772814729603,-500.0,0.00025205,2]
[407809508,1772814729613,-500.0,0.00025205,2]
[407809509,1772814729625,-214.68428333,0.00025205,2]
[407809510,1772814729635,-500.0,0.00025205,2]
[407809511,1772814729647,-150.0,0.00025205,2]
[407809512,1772814729662,-500.0,0.00025205,2]
[407809513,1772814729672,-500.0,0.00025205,2]
[407809514,1772814729683,-500.0,0.00025205,2]
[407809515,1772814729692,-500.0,0.00025205,2]
[407809516,1772814729703,-150.0,0.00025205,2]
[407809517,1772814729714,-150.0,0.00025205,2]
[407809518,1772814729725,-500.0,0.00025205,2]
[407809519,1772814729737,-500.0,0.00025205,2]
[407809520,1772814729747,-151.0,0.00025205,2]
[407809521,1772814729758,-151.0,0.00025205,2]
[407809522,1772814729769,-151.0,0.00025205,2]
[407809523,1772814729779,-220.289661,0.00025205,2]
[407809524,1772814729790,-1831.985538,0.00025205,2]
[407809525,1772814729800,-1831.985538,0.00025205,2]
[407809526,1772814729811,-1831.985538,0.00025205,2]
[407809527,1772814729822,-1831.985538,0.00025205,2]
[407809528,1772814729833,-500.0,0.00025205,2]
[407809529,1772814729843,-1271.0,0.00025205,2]
[407809530,1772814729854,-524.0,0.00025205,2]
[407809531,1772814729864,-265.24292304,0.00025205,2]
[407809532,1772814729875,-500.0,0.00025205,2]
[407809533,1772814729886,-500.0,0.00025205,2]
[407809534,1772814729904,-665.0,0.00025205,2]
[407809535,1772814729916,-500.0,0.00025205,2]
[407809536,1772814729928,-1951.0,0.00025205,2]
[407809537,1772814729941,-478.0,0.00025205,2]
[407809538,1772814729952,-500.0,0.00025205,2]
[407809539,1772814729962,-150.0,0.00025205,2]
[407809540,1772814729973,-922.0,0.00025205,2]
[407809541,1772814729985,-150.0,0.00025205,2]
[407809542,1772814729996,-500.0,0.00025205,2]
[407809543,1772814730008,-715.0,0.00025205,2]
[407809544,1772814730019,-500.0,0.00025205,2]
[407809545,1772814730030,-500.0,0.00025205,2]
[407809546,1772814730041,-500.0,0.00025205,2]
[407809547,1772814730053,-160.0155615,0.00025205,2]
[407809548,1772814730063,-150.0,0.00025205,2]
[407809549,1772814730074,-150.0,0.00025205,2]
[407809550,1772814730085,-500.0,0.00025205,2]
[407809551,1772814730097,-500.0,0.00025205,2]
[407809552,1772814730109,-1184.0,0.00025205,2]
[407809553,1772814730121,-500.0,0.00025205,2]
[407809554,1772814730133,-150.0,0.00025205,2]
[407809555,1772814730143,-150.0,0.00025278,14]
[407809556,1772814730156,-150.0,0.00025278,14]
[407809557,1772814730167,-150.0,0.00025278,14]
[407809558,1772814730178,-181.0,0.00025278,14]
[407809559,1772814730189,-273.0,0.00025278,30]
[407809560,1772814730199,-350.0,0.0002532,2]
[407809561,1772814730210,-847.0,0.00025328,3]
[407809562,1772814730222,-1126.22133167,0.00025345,2]
[407809563,1772814730232,-150.0,0.00025352,7]
[407809564,1772814730243,-150.0,0.00025352,7]
[407809565,1772814730258,-150.0,0.00025352,7]
[407809566,1772814730270,-191.0,0.00025352,7]
[407809567,1772814730281,-1255.08996213,0.0002539,30]
[407809568,1772814730294,-49724.35060446,0.0002539,2]
[407809569,1772814730305,-150.0,0.00025445,2]
[407809570,1772814730316,-500.0,0.00025479,2]
[407809571,1772814730327,-500.0,0.00025479,2]
[407809572,1772814730339,-500.0,0.00025479,2]
[407809573,1772814730350,-500.0,0.00025479,2]
[407809574,1772814730361,-500.0,0.00025479,2]
[407809575,1772814730372,-500.0,0.00025479,2]
[407809576,1772814730383,-500.0,0.00025479,2]
[407809577,1772814730395,-150.0,0.00025479,2]
[407809578,1772814730409,-500.0,0.00025479,2]
[407809579,1772814730420,-500.0,0.00025479,2]
[407809580,1772814730430,-500.0,0.00025479,2]
[407809581,1772814730441,-1271.0,0.00025479,2]
[407809582,1772814730451,-524.0,0.00025479,2]
[407809583,1772814730466,-500.0,0.00025479,2]
[407809584,1772814730477,-500.0,0.00025479,2]
[407809585,1772814730488,-665.0,0.00025479,2]
[407809586,1772814730500,-500.0,0.00025479,2]
[407809587,1772814730929,-1951.0,0.00025479,2]
[407809588,1772814730940,-478.0,0.00025479,2]
[407809589,1772814730950,-500.0,0.00025479,2]
[407809590,1772814730959,-150.0,0.00025479,2]
[407809591,1772814730969,-922.0,0.00025479,2]
[407809592,1772814730979,-150.0,0.00025479,2]
[407809593,1772814730988,-500.0,0.00025479,2]
[407809594,1772814730998,-715.0,0.00025479,2]
[407809595,1772814731008,-500.0,0.00025479,2]
[407809596,1772814731018,-500.0,0.00025479,2]
[407809597,1772814731028,-500.0,0.00025479,2]
[407809598,1772814731038,-150.0,0.00025479,2]
[407809599,1772814731047,-150.0,0.00025479,2]
[407809600,1772814731057,-500.0,0.00025479,2]
[407809601,1772814731067,-500.0,0.00025479,2]
[407809602,1772814731077,-1184.0,0.00025479,2]
[407809603,1772814731087,-500.0,0.00025479,2]
[407809604,1772814731097,-150.0,0.000255,2]
[407809605,1772814731106,-209.43,0.000255,2]
[407809606,1772814731116,-452.49,0.00025507,2]
[407809607,1772814731125,-1000.0,0.00025539,2]
[407809608,1772814731135,-11890.5345465,0.00025569,2]
[407809609,1772814731145,-151.0,0.00025569,2]
[407809610,1772814731156,-151.0,0.00025569,2]
[407809611,1772814731166,-151.0,0.00025569,2]
[407809612,1772814731175,-151.0,0.00025569,2]
[407809613,1772814731185,-500.0,0.0002557,2]
[407809614,1772814731195,-1000.0,0.0002557,2]
[407809615,1772814731205,-500.0,0.00025586,2]
[407809616,1772814731215,-532.32,0.00025586,2]
[407809617,1772814731224,-1515.0,0.00025587,3]
[407809618,1772814731234,-1515.0,0.00025587,3]
[407809619,1772814731243,-300.0,0.00025587,3]
[407809620,1772814731253,-152.0,0.00025587,3]
[407809621,1772814731263,-152.0,0.00025587,3]
[407809622,1772814731272,-152.0,0.00025587,3]
[407809623,1772814731282,-166.0,0.00025587,3]
[407809624,1772814731292,-166.0,0.00025587,3]
[407809625,1772814731302,-166.0,0.00025587,3]
[407809626,1772814731312,-166.0,0.00025587,3]
[407809627,1772814731322,-166.0,0.00025587,3]
[407809628,1772814731331,-166.0,0.00025587,3]
[407809629,1772814731341,-166.0,0.00025587,3]
[407809630,1772814731351,-166.0,0.00025587,3]
[407809631,1772814731360,-172.0,0.00025587,3]
[407809632,1772814731369,-160.25459329,0.00025587,3]
[407809633,1772814731379,-151.0,0.00025587,2]
[407809634,1772814731388,-151.0,0.00025587,2]
[407809635,1772814731399,-350.0,0.00025687,2]
[407809636,1772814731408,-1255.08996213,0.00025691,30]
[407809637,1772814731419,-151.0,0.000257,2]
[407809638,1772814731428,-500.0,0.00025753,2]
[407809639,1772814731438,-200.0,0.00025753,2]
[407809640,1772814731448,-500.0,0.00025753,2]
[407809641,1772814731458,-500.0,0.00025753,2]
[407809642,1772814731467,-500.0,0.00025753,2]
[407809643,1772814731477,-500.0,0.00025753,2]
[407809644,1772814731486,-500.0,0.00025753,2]
[407809645,1772814731496,-200.0,0.00025753,2]
[407809646,1772814731506,-500.0,0.00025753,2]
[407809647,1772814731516,-500.0,0.00025753,2]
[407809648,1772814731526,-500.0,0.00025753,2]
[407809649,1772814731535,-1271.0,0.00025753,2]
[407809650,1772814731544,-524.0,0.00025753,2]
[407809651,1772814731554,-500.0,0.00025753,2]
[407809652,1772814731564,-500.0,0.00025753,2]
[407809653,1772814731573,-500.0,0.00025753,2]
[407809654,1772814731583,-1951.0,0.00025753,2]
[407809655,1772814731593,-478.0,0.00025753,2]
[407809656,1772814731603,-500.0,0.00025753,2]
[407809657,1772814731612,-150.0,0.00025753,2]
[407809658,1772814731623,-922.0,0.00025753,2]
[407809659,1772814731634,-150.0,0.00025753,2]
[407809660,1772814731645,-500.0,0.00025753,2]
[407809661,1772814731659,-665.0,0.00025753,2]
[407809662,1772814731671,-715.0,0.00025753,2]
[407809663,1772814731681,-500.0,0.00025753,2]
[407809664,1772814731690,-500.0,0.00025753,2]
[407809665,1772814731700,-408.6738188,0.00025753,2]
[407809666,1772814731710,-150.0,0.00025753,2]
[407809667,1772814731721,-500.0,0.00025753,2]
[407809668,1772814731732,-500.0,0.00025753,2]
[407809669,1772814731742,-1184.0,0.00025753,2]
[407809670,1772814731752,-500.0,0.00025753,2]
[407809671,1772814731762,-181.0,0.000258,2]
[407809672,1772814731774,-151.0,0.000258,2]
[407809673,1772814731785,-244.95605789,0.00025873,30]
[407809674,1772814731795,-150.0,0.0002589,2]
[407809675,1772814731804,-1255.08996213,0.00025993,30]
[407809676,1772814731814,-160.0,0.00026,3]
[407809677,1772814731823,-500.0,0.00026027,2]
[407809678,1772814731833,-500.0,0.00026027,2]
[407809679,1772814731843,-500.0,0.00026027,2]
[407809680,1772814731853,-500.0,0.00026027,2]
[407809681,1772814731862,-500.0,0.00026027,2]
[407809682,1772814731872,-500.0,0.00026027,2]
[407809683,1772814731882,-500.0,0.00026027,2]
[407809684,1772814731892,-500.0,0.00026027,2]
[407809685,1772814731903,-1271.0,0.00026027,2]
[407809686,1772814731913,-524.0,0.00026027,2]
[407809687,1772814731923,-500.0,0.00026027,2]
[407809688,1772814731932,-500.0,0.00026027,2]
[407809689,1772814731942,-500.0,0.00026027,2]
[407809690,1772814731951,-1951.0,0.00026027,2]
[407809691,1772814731960,-478.0,0.00026027,2]
[407809692,1772814731969,-500.0,0.00026027,2]
[407809693,1772814731979,-150.0,0.00026027,2]
[407809694,1772814731989,-922.0,0.00026027,2]
[407809695,1772814731998,-150.0,0.00026027,2]
[407809696,1772814732008,-500.0,0.00026027,2]
[407809697,1772814732018,-665.0,0.00026027,2]
[407809698,1772814732027,-715.0,0.00026027,2]
[407809699,1772814732037,-500.0,0.00026027,2]
[407809700,1772814732046,-500.0,0.00026027,2]
[407809701,1772814732056,-150.0,0.00026027,2]
[407809702,1772814732066,-500.0,0.00026027,2]
[407809703,1772814732075,-500.0,0.00026027,2]
[407809704,1772814732085,-1184.0,0.00026027,2]
[407809705,1772814732094,-425.51044812,0.00026027,2]
[407809706,1772814732103,-2000.0,0.00026027,2]
[407809707,1772814732113,-150.0,0.000261,14]
[407809708,1772814732123,-268.0,0.000261,14]
[407809709,1772814732133,-200.0,0.00026237,7]
[407809710,1772814732143,-621.78829552,0.00026246,2]
[407809711,1772814732154,-1000.0,0.00026246,2]
[407809712,1772814732164,-151.0,0.00026248,2]
[407809713,1772814732174,-346.42,0.0002627,2]
[407809714,1772814732183,-500.0,0.0002627,2]
[407809715,1772814732193,-1000.0,0.0002627,2]
[407809716,1772814732202,-252.71125359,0.00026276,2]
[407809717,1772814732212,-1255.08996213,0.00026295,30]
[407809718,1772814732221,-500.0,0.00026301,2]
[407809719,1772814732230,-500.0,0.00026301,2]
[407809720,1772814732240,-500.0,0.00026301,2]
[407809721,1772814732249,-500.0,0.00026301,2]
[407809722,1772814732258,-500.0,0.00026301,2]
[407809723,1772814732268,-500.0,0.00026301,2]
[407809724,1772814732277,-179.22864957,0.00026301,2]
[407809725,1772814732286,-500.0,0.00026301,2]
[407809726,1772814732295,-1271.0,0.00026301,2]
[407809727,1772814732304,-524.0,0.00026301,2]
[407809728,1772814732313,-500.0,0.00026301,2]
[407809729,1772814732322,-500.0,0.00026301,2]
[407809730,1772814732332,-500.0,0.00026301,2]
[407809731,1772814732341,-1951.0,0.00026301,2]
[407809732,1772814732351,-478.0,0.00026301,2]
[407809733,1772814732360,-500.0,0.00026301,2]
[407809734,1772814732369,-150.0,0.00026301,2]
[407809735,1772814732379,-922.0,0.00026301,2]
[407809736,1772814732388,-150.0,0.00026301,2]
[407809737,1772814732398,-500.0,0.00026301,2]
[407809738,1772814732410,-665.0,0.00026301,2]
[407809739,1772814732419,-715.0,0.00026301,2]
[407809740,1772814732429,-500.0,0.00026301,2]
[407809741,1772814732438,-500.0,0.00026301,2]
[407809742,1772814732447,-150.0,0.00026301,2]
[407809743,1772814732457,-500.0,0.00026301,2]
[407809744,1772814732467,-500.0,0.00026301,2]
[407809745,1772814732476,-1184.0,0.00026301,2]
[407809746,1772814732485,-172.74325605,0.000264,3]
[407809747,1772814732495,-3364.85513637,0.00026431,2]
[407809748,1772814732505,-500.0,0.00026575,2]
[407809749,1772814732514,-500.0,0.00026575,2]
[407809750,1772814732523,-180.19786508,0.00026575,2]
[407809751,1772814732532,-500.0,0.00026575,2]
[407809752,1772814732541,-500.0,0.00026575,2]
[407809753,1772814732551,-500.0,0.00026575,2]
[407809754,1772814732560,-500.0,0.00026575,2]
[407809755,1772814732569,-524.0,0.00026575,2]
[407809756,1772814732577,-1271.0,0.00026575,2]
[407809757,1772814732587,-500.0,0.00026575,2]
[407809758,1772814732596,-500.0,0.00026575,2]
[407809759,1772814732606,-500.0,0.00026575,2]
[407809760,1772814732615,-1951.0,0.00026575,2]
[407809761,1772814732625,-478.0,0.00026575,2]
[407809762,1772814732634,-500.0,0.00026575,2]
[407809763,1772814732643,-250.0,0.00026575,2]
[407809764,1772814732653,-922.0,0.00026575,2]
[407809765,1772814732667,-250.0,0.00026575,2]
[407809766,1772814732676,-500.0,0.00026575,2]
[407809767,1772814732907,-665.0,0.00026575,2]
[407809768,1772814732918,-715.0,0.00026575,2]
[407809769,1772814732927,-600.17298452,0.00026575,2]
[407809770,1772814732937,-500.0,0.00026575,2]
[407809771,1772814732947,-250.0,0.00026575,2]
[407809772,1772814732956,-500.0,0.00026575,2]
[407809773,1772814732966,-500.0,0.00026575,2]
[407809774,1772814732976,-1184.0,0.00026575,2]
[407809775,1772814732986,-1255.08996213,0.00026597,30]
[407809776,1772814732995,-150.0,0.00026675,21]
[407809777,1772814733005,-150.0,0.00026675,21]
[407809778,1772814733015,-179.0,0.00026675,21]
[407809779,1772814733024,-350.0,0.00026686,2]
[407809780,1772814733034,-452.50735946,0.00026783,2]
[407809781,1772814733042,-151.0,0.00026796,2]
[407809782,1772814733051,-350.0,0.00026798,2]
[407809783,1772814733061,-2000.0,0.000268,2]
[407809784,1772814733070,-350.0,0.00026806,2]
[407809785,1772814733079,-400.0,0.00026848,15]
[407809786,1772814733090,-500.0,0.00026849,2]
[407809787,1772814733100,-500.0,0.00026849,2]
[407809788,1772814733110,-500.0,0.00026849,2]
[407809789,1772814733120,-500.0,0.00026849,2]
[407809790,1772814733131,-500.0,0.00026849,2]
[407809791,1772814733141,-553.09495447,0.00026849,2]
[407809792,1772814733154,-524.0,0.00026849,2]
[407809793,1772814733163,-1271.0,0.00026849,2]
[407809794,1772814733173,-500.0,0.00026849,2]
[407809795,1772814733183,-500.0,0.00026849,2]
[407809796,1772814733194,-500.0,0.00026849,2]
[407809797,1772814733205,-1951.0,0.00026849,2]
[407809798,1772814733217,-478.0,0.00026849,2]
[407809799,1772814733227,-348.93054391,0.00026849,2]
[407809800,1772814733238,-922.0,0.00026849,2]
[407809801,1772814733248,-500.0,0.00026849,2]
[407809802,1772814733259,-665.0,0.00026849,2]
[407809803,1772814733269,-715.0,0.00026849,2]
[407809804,1772814733278,-500.0,0.00026849,2]
[407809805,1772814733287,-500.0,0.00026849,2]
[407809806,1772814733297,-500.0,0.00026849,2]
[407809807,1772814733306,-1184.0,0.00026849,2]
[407809808,1772814733315,-1255.08996213,0.00026899,60]
[407809809,1772814733324,-151.0,0.000269,2]
[407809810,1772814733333,-4719.65,0.000269,14]
[407809811,1772814733343,-244.95605789,0.00026924,60]
[407809812,1772814733352,-156.88624525,0.00026924,60]
[407809813,1772814733361,-1419.548189,0.00027,2]
[407809814,1772814733370,-1996.54030927,0.00027,14]
[407809815,1772814733381,-500.0,0.00027096,2]
[407809816,1772814733393,-500.0,0.00027123,2]
[407809817,1772814733403,-500.0,0.00027123,2]
[407809818,1772814733412,-500.0,0.00027123,2]
[407809819,1772814733423,-400.0,0.00027123,2]
[407809820,1772814733432,-320.49208908,0.00027123,2]
[407809821,1772814733444,-524.0,0.00027123,2]
[407809822,1772814733454,-1271.0,0.00027123,2]
[407809823,1772814733464,-500.0,0.00027123,2]
[407809824,1772814733474,-500.0,0.00027123,2]
[407809825,1772814733484,-627.92320677,0.00027123,2]
[407809826,1772814733493,-1951.0,0.00027123,2]
[407809827,1772814733504,-478.0,0.00027123,2]
[407809828,1772814733514,-922.0,0.00027123,2]
[407809829,1772814733524,-500.0,0.00027123,2]
[407809830,1772814733535,-665.0,0.00027123,2]
[407809831,1772814733546,-715.0,0.00027123,2]
[407809832,1772814733556,-500.0,0.00027123,2]
[407809833,1772814733566,-500.0,0.00027123,2]
[407809834,1772814733577,-500.0,0.00027123,2]
[407809835,1772814733588,-1184.0,0.00027123,2]
[407809836,1772814733600,-3704.55,0.00027123,2]
[407809837,1772814733611,-150.0,0.00027163,14]
[407809838,1772814733623,-150.0,0.00027163,14]
[407809839,1772814733632,-261.0,0.00027163,14]
[407809840,1772814733642,-150.0,0.00027185,2]
[407809841,1772814733651,-1255.08996213,0.00027201,60]
[407809842,1772814733663,-150.0,0.00027244,21]
[407809843,1772814733673,-150.0,0.00027244,21]
[407809844,1772814733683,-151.0,0.00027244,21]
[407809845,1772814733692,-930.0980025,0.0002729,2]
[407809846,1772814733702,-350.0,0.00027332,2]
[407809847,1772814733712,-1787.4327161,0.00027335,2]
[407809848,1772814733722,-151.0,0.00027344,2]
[407809849,1772814733734,-150.0,0.00027369,2]
[407809850,1772814733743,-8155.91480387,0.0002739,2]
[407809851,1772814733752,-4442.05230728,0.0002739,7]
[407809852,1772814733761,-573.44789223,0.00027397,2]
[407809853,1772814733771,-500.0,0.00027397,2]
[407809854,1772814733780,-500.0,0.00027397,2]
[407809855,1772814733790,-524.0,0.00027397,2]
[407809856,1772814733799,-1271.0,0.00027397,2]
[407809857,1772814733809,-500.0,0.00027397,2]
[407809858,1772814733819,-500.0,0.00027397,2]
[407809859,1772814733828,-1951.0,0.00027397,2]
[407809860,1772814733838,-478.0,0.00027397,2]
[407809861,1772814733848,-922.0,0.00027397,2]
[407809862,1772814733858,-500.0,0.00027397,2]
[407809863,1772814733869,-665.0,0.00027397,2]
[407809864,1772814733879,-715.0,0.00027397,2]
[407809865,1772814733889,-500.0,0.00027397,2]
[407809866,1772814733899,-500.0,0.00027397,2]
[407809867,1772814733909,-500.0,0.00027397,2]
[407809868,1772814733919,-1184.0,0.00027397,2]
[407809869,1772814733928,-152.619756,0.00027397,2]
[407809870,1772814733937,-151.0,0.00027397,2]
[407809871,1772814733947,-151.0,0.00027397,2]
[407809872,1772814733956,-151.0,0.00027397,2]
[407809873,1772814733966,-2000.0,0.00027397,12]
[407809874,1772814733981,-271.73279281,0.00027397,7]
[407809875,1772814733991,-2500.0,0.00027397,5]
[407809876,1772814734000,-300.0,0.00027397,2]
[407809877,1772814734010,-1000.0,0.00027397,20]
[407809878,1772814734019,-151.0,0.00027397,2]
[407809879,1772814734029,-13264.28,0.00027397,10]
[407809880,1772814734039,-212.42196071,0.00027397,4]
[407809881,1772814734049,-500.0,0.00027397,5]
[407809882,1772814734058,-3595.63,0.000274,7]
[407809883,1772814734068,-5298.44,0.000274,7]
[407809884,1772814734079,-825.0,0.00027424,60]
[407809885,1772814734088,-222.84687042,0.00027444,2]
[407809886,1772814734098,-346.42,0.00027464,2]
[407809887,1772814734107,-1255.08996213,0.00027503,60]
[407809888,1772814734117,-243.46558561,0.00027616,30]
[407809889,1772814734126,-500.0,0.00027671,2]
[407809890,1772814734136,-192.44220741,0.00027671,2]
[407809891,1772814734146,-524.0,0.00027671,2]
[407809892,1772814734155,-1271.0,0.00027671,2]
[407809893,1772814734165,-554.63301169,0.00027671,2]
[407809894,1772814734175,-500.0,0.00027671,2]
[407809895,1772814734185,-1951.0,0.00027671,2]
[407809896,1772814734194,-478.0,0.00027671,2]
[407809897,1772814734204,-922.0,0.00027671,2]
[407809898,1772814734214,-500.0,0.00027671,2]
[407809899,1772814734224,-665.0,0.00027671,2]
[407809900,1772814734234,-715.0,0.00027671,2]
[407809901,1772814734243,-500.0,0.00027671,2]
[407809902,1772814734253,-500.0,0.00027671,2]
[407809903,1772814734262,-500.0,0.00027671,2]
[407809904,1772814734272,-1184.0,0.00027671,2]
[407809905,1772814734281,-207.5329162,0.00027783,2]
[407809906,1772814734290,-175.33508358,0.000278,5]
[407809907,1772814734300,-1255.08996213,0.00027805,60]
[407809908,1772814734309,-243.46558561,0.0002789,30]
[407809909,1772814734318,-151.0,0.00027892,2]
[407809910,1772814734328,-304.0,0.000279,2]
[407809911,1772814734337,-500.0,0.00027945,2]
[407809912,1772814734347,-524.0,0.00027945,2]
[407809913,1772814734356,-1271.0,0.00027945,2]
[407809914,1772814734366,-500.0,0.00027945,2]
[407809915,1772814734376,-1951.0,0.00027945,2]
[407809916,1772814734386,-478.0,0.00027945,2]
[407809917,1772814734396,-922.0,0.00027945,2]
[407809918,1772814734406,-266.60867263,0.00027945,2]
[407809919,1772814734416,-665.0,0.00027945,2]
[407809920,1772814734425,-715.0,0.00027945,2]
[407809921,1772814734435,-500.0,0.00027945,2]
[407809922,1772814734444,-500.0,0.00027945,2]
[407809923,1772814734453,-500.0,0.00027945,2]
[407809924,1772814734462,-1184.0,0.00027945,2]
[407809925,1772814734471,-244.95605789,0.00027974,60]
[407809926,1772814734480,-1135.69,0.00027984,30]
[407809927,1772814734490,-151.0,0.00028,2]
[407809928,1772814734499,-51089.92023293,0.00028,2]
[407809929,1772814734508,-643.0,0.00028,2]
[407809930,1772814734518,-151.0,0.00028,7]
[407809931,1772814734528,-151.0,0.00028,7]
[407809932,1772814734537,-151.0,0.00028,7]
[407809933,1772814734546,-189.39942,0.00028,7]
[407809934,1772814734555,-332.483725,0.00028,7]
[407809935,1772814734564,-332.483725,0.00028,7]
[407809936,1772814734574,-332.483725,0.00028,7]
[407809937,1772814734584,-332.483725,0.00028,7]
[407809938,1772814734594,-225.902031,0.00028,7]
[407809939,1772814734603,-225.902031,0.00028,7]
[407809940,1772814734612,-225.902031,0.00028,7]
[407809941,1772814734622,-225.902031,0.00028,7]
[407809942,1772814734631,-151.0,0.00028,7]
[407809943,1772814734640,-203.715156,0.00028,7]
[407809944,1772814734650,-1396.228732,0.00028,7]
[407809945,1772814734661,-1396.228732,0.00028,7]
[407809946,1772814734671,-1396.228732,0.00028,7]
[407809947,1772814734681,-1396.228732,0.00028,7]
[407809948,1772814734690,-172.74325605,0.00028,7]
[407809949,1772814734699,-1255.08996213,0.00028107,60]
[407809950,1772814734708,-298.0,0.0002813,21]
[407809951,1772814734718,-236.22884881,0.00028219,2]
[407809952,1772814734727,-524.0,0.00028219,2]
[407809953,1772814734738,-1271.0,0.00028219,2]
[407809954,1772814734748,-500.0,0.00028219,2]
[407809955,1772814734757,-1951.0,0.00028219,2]
[407809956,1772814734767,-478.0,0.00028219,2]
[407809957,1772814734777,-922.0,0.00028219,2]
[407809958,1772814734786,-665.0,0.00028219,2]
[407809959,1772814734796,-715.0,0.00028219,2]
[407809960,1772814734805,-500.0,0.00028219,2]
[407809961,1772814734815,-500.0,0.00028219,2]
[407809962,1772814734824,-500.0,0.00028219,2]
[407809963,1772814734834,-1184.0,0.00028219,2]
[407809964,1772814734844,-151.0,0.00028219,7]
[407809965,1772814734854,-201.691028,0.00028219,7]
[407809966,1772814734863,-631.014494,0.00028219,7]
[407809967,1772814734872,-631.014494,0.00028219,7]
[407809968,1772814734882,-631.014494,0.00028219,7]
[407809969,1772814734891,-631.014494,0.00028219,7]
[407809970,1772814734900,-1127.410745,0.00028219,7]
[407809971,1772814734910,-1127.410745,0.00028219,7]
[407809972,1772814734920,-1127.410745,0.00028219,7]
[407809973,1772814734930,-706.111149,0.00028219,7]
[407809974,1772814734940,-706.111149,0.00028219,7]
[407809975,1772814734950,-706.111149,0.00028219,7]
[407809976,1772814734961,-1127.410745,0.00028219,7]
[407809977,1772814734971,-706.111149,0.00028219,7]
[407809978,1772814734982,-202.88798801,0.00028219,30]
[407809979,1772814734991,-1255.08996213,0.00028408,60]
[407809980,1772814735001,-151.0,0.0002844,2]
[407809981,1772814735009,-524.0,0.00028493,2]